Cogmind - Beta 15 @@@ ROGUE MODE // 2025.09.25 @ 19:08:31 Player: Figgis Result: Self-destructed Performance ------------- Evolutions (3) 1500 Regions Visited (4) 800 Robots Destroyed (33) 165 Value Destroyed (1072) 1072 Prototype IDs (15) 300 Alien Tech Used (0) 0 Bonus (0) 0 TOTAL SCORE: 3837 Bonus ------- None Cogmind --------- Core Integrity 623/700 Matter 6/300 Energy 100/100 System Corruption 0% Temperature Cool (0) Movement Walking (260) Ox2 Location -7/Factory Parts ------- > --- POWER (1) -------- (None) > --- PROPULSION (4) --- Aluminum Leg > --- UTILITY (6) ------ Large Storage Unit Makeshift Hacking Suite > --- WEAPON (2) ------- Battle Rifle Mini Grenade Launcher > --- INVENTORY (15) --- Ion Engine Subdweller Power Source Improved Aluminum Leg Makeshift Leg Gravmag System Rainbow Chip Light Cannon Ripper Peak State ------------ > --- POWER ------------ Ion Engine > --- PROPULSION ------- Aluminum Leg Aluminum Leg Aluminum Leg Aluminum Leg > --- UTILITY ---------- Large Storage Unit Terrain Scanner Makeshift Hacking Suite > --- WEAPON ----------- Light Cannon Battle Cannon > --- INVENTORY -------- Ion Engine Subdweller Power Source Aluminum Leg Improved Aluminum Leg Makeshift Leg Rainbow Chip Battle Rifle Light Cannon Mini Grenade Launcher Ripper [Rating: 17] Favorites ----------- Power Light Ion Engine Engine Light Ion Engine Propulsion Aluminum Leg Leg Aluminum Leg Utility Large Storage Unit Device Terrain Scanner Storage Large Storage Unit Hackware Makeshift Hacking Suite Weapon Light Cannon Energy Gun EM Pulse Gun Ballistic Gun Battle Rifle Ballistic Cannon Light Cannon Launcher Mini Grenade Launcher Build | -11 -10 -10 -9 -7 ------- Run | Yrd Mat Sub Rec Fac Slots Evolved 6 | . . . . 6 Power . | . . . . . Propulsion 2 | . . . . 2 Utility 4 | . . . . 4 Weapon . | . . . . . Parts Attached 24 | 3 7 7 2 5 Power 2 | . 1 1 . . Engine 2 | . 1 1 . . Core . | . . . . . Reactor . | . . . . . Propulsion 8 | 2 . 2 1 3 Treads . | . . . . . Leg 8 | 2 . 2 1 3 Wheel . | . . . . . Hover . | . . . . . Flight . | . . . . . Utility 5 | . 4 . . 1 Device 1 | . 1 . . . Storage 3 | . 3 . . . Processor . | . . . . . Hackware 1 | . . . . 1 Protection . | . . . . . Artifact . | . . . . . Weapon 9 | 1 2 4 1 1 Energy Gun 1 | 1 . . . . Energy Cannon . | . . . . . Ballistic Gun 1 | . . . . 1 Ballistic Cannon 5 | . 2 3 . . Launcher 2 | . . 1 1 . Special Weapon . | . . . . . Impact Weapon . | . . . . . Slashing Weapon . | . . . . . Piercing Weapon . | . . . . . Special Melee Weapon . | . . . . . Unidentified Prototypes . | . . . . . Parts Lost 10 | . . 2 . 8 Power 2 | . . 1 . 1 Propulsion 5 | . . 1 . 4 Utility 1 | . . . . 1 Weapon 2 | . . . . 2 Highest Loss Streak 4 | . . 2 . 4 To Critical Strikes . | . . . . . Average Backups 10 | 3 7 12 12 9 Power 2 | 1 1 2 2 2 Propulsion 4 | . 3 5 4 3 Utility . | . . . 2 1 Weapon 3 | 1 2 3 4 3 Tool/Special . | . . . . . Unused Backups 10 | . 3 . . 7 Power 2 | . . . . 2 Propulsion 3 | . . . . 3 Utility 2 | . 1 . . 1 Weapon 3 | . 2 . . 1 Tool/Special . | . . . . . Average Slot Usage (%) 93 | . 86 99 100 61 Engine 13 | . 13 13 14 5 Leg 27 | . 28 28 28 20 Device 10 | . 4 14 14 5 Storage 13 | . 13 14 14 7 Ballistic Cannon 24 | . 26 26 25 10 Launcher 1 | . . 1 2 3 Peak Build Rating 17 | 3 8 11 11 17 Average Rating 9 | 1 6 9 10 14 On Entrance 6 | . 3 8 10 11 Naked Turns . | . . . . . Heaviest Build 32 | 2 30 32 32 32 Greatest Support 40 | 3 20 20 20 40 Greatest Overweight (x) 2 | . 1 1 1 2 Average Overweight (x) . | . . 1 1 . Largest Inventory Capacity 15 | 5 15 15 15 15 Average Capacity 13 | 5 11 15 15 15 Most Carried 15 | 5 11 15 14 13 Average Carried 10 | 3 7 12 12 9 Final Capacity 15 | 5 15 15 15 15 Final Carried 13 | 5 11 13 13 8 Class Distribution -------------------- 98% | Mutant Dominant Class ---------------- Mutant | -10/Materials Mutant | -10/Subcaves Mutant | -9/Recycling Mutant | -7/Factory Resources | -11 -10 -10 -9 -7 ----------- Run | Yrd Mat Sub Rec Fac Matter Collected 904 | 230 121 293 243 17 Remotely . | . . . . . Salvage Created 596 | . 227 74 101 194 Parts 50 | . 22 11 5 12 Haulers Intercepted . | . . . . . Recyclers Shooed . | . . . . . Parts Field Recycled . | . . . . . Retrieved Matter . | . . . . . Parts Self-Destructed 8 | . . 8 . . Prevented . | . . . . . Kills | -11 -10 -10 -9 -7 ------- Run | Yrd Mat Sub Rec Fac Combat Hostiles Destroyed 27 | . 9 6 3 9 Cannons 15 | . 9 3 3 . AOE 12 | . . 3 . 9 Classes Destroyed 9 | . 3 2 1 3 Worker 1 | . . . . 1 Turret 2 | . . 2 . . Watcher 3 | . 3 . . . Swarmer 9 | . 5 4 . . Grunt 9 | . 4 . . 5 Duelist 1 | . . . . 1 Sentry 4 | . . . 3 1 Hunter 2 | . . . . 2 Subdweller 2 | . . 2 . . Best Kill Streak 6 | . 6 4 1 6 Combat Bots Only 6 | . 4 4 1 6 Max Kills in Single Turn 4 | . 1 2 1 4 Gunslinging . | . . . . . Exploded 4 | . . 2 . 4 Melee . | . . . . . Uniques/NPCs Destroyed . | . . . . . Combat | -11 -10 -10 -9 -7 -------- Run | Yrd Mat Sub Rec Fac Hostile Shots Fired 150 | . 27 52 14 57 Missed 56 | . 10 24 5 17 Hits 94 | . 17 28 9 40 Melee 1 | . . . . 1 Projectile 93 | . 17 28 9 39 AOE 1 | . 1 . . . Critical Strikes 1 | . . 1 . . Damage Taken 1771 | . 442 366 135 828 Core 176 | . 32 34 33 77 Absorbed by Shields . | . . . . . Core Remaining (%) 80 | 100 . . 60 . Volleys Fired 83 | . 21 30 9 23 Largest 2 | . 2 2 2 2 Hottest 63 | . 60 63 63 63 Shots Fired 163 | . 42 60 17 44 Gun 2 | . . . . 2 Cannon 138 | . 42 52 17 27 Launcher 23 | . . 8 . 15 Special . | . . . . . Kinetic 140 | . 42 52 17 29 Thermal . | . . . . . Explosive 23 | . . 8 . 15 Electromagnetic . | . . . . . Robot Hit Streak 12 | . 9 12 5 7 Robot Miss Streak 4 | . 4 2 1 3 Penetration Max . | . . . . . Secondary Targets . | . . . . . Shots Hit Robots 78 | . 22 16 13 27 Core Hits 58 | . 13 16 3 26 Critical Kills . | . . . . . Critical Parts Destroyed . | . . . . . Critical Strikes 3 | . 1 1 1 . Blast 3 | . 1 1 1 . Melee Attacks . | . . . . . Impact . | . . . . . Slashing . | . . . . . Piercing . | . . . . . Sneak Attacks . | . . . . . Combat Hostiles . | . . . . . Follow-up Attacks . | . . . . . Damage Inflicted 2798 | . 406 489 265 1638 Guns 20 | . . . . 20 Cannons 1224 | . 406 269 265 284 Explosions 1554 | . . 220 . 1334 Melee . | . . . . . Ramming . | . . . . . Kinetic 1244 | . 406 269 265 304 Thermal 490 | . . . . 490 Explosive 1064 | . . 220 . 844 Electromagnetic . | . . . . . Impact . | . . . . . Slashing . | . . . . . Piercing . | . . . . . Highest Corruption . | . . . . . Average Corruption . | . . . . . Corruption Purged . | . . . . . Corruption Blocked . | . . . . . Overload Shots . | . . . . . Overflow Damage 110 | . . . . 110 Projectiles 12 | . . . . 12 Explosions 98 | . . . . 98 Melee . | . . . . . Knockbacks 16 | . 7 2 . 7 Impact . | . . . . . Kinetic 16 | . 7 2 . 7 Secondary . | . . . . . Self-Inflicted Damage 206 | . . 36 . 170 Shots 5 | . . 1 . 4 Rammed . | . . . . . Targets Rammed . | . . . . . Kicked . | . . . . . Crushed . | . . . . . Highest Temperature 33 | . 18 . 33 2 Average Temperature 12 | . 9 . 14 2 Received Heat Transfer 384 | . 36 105 27 216 Siege Activations . | . . . . . Martial Activations . | . . . . . Shielding Activations . | . . . . . Robots Disrupted . | . . . . . Combat Hostiles . | . . . . . Robots Corrupted . | . . . . . Combat Hostiles . | . . . . . Parts Fried . | . . . . . Impact Corruptions . | . . . . . Robots Melted . | . . . . . Combat Hostiles . | . . . . . Parts Melted 1 | . . . . 1 Heat Transferred 400 | . . . . 400 Parts Sabotaged . | . . . . . Parts Stolen . | . . . . . Parts Stripped . | . . . . . Power Chain Reactions . | . . . . . Alert | -11 -10 -10 -9 -7 ------- Run | Yrd Mat Sub Rec Fac Maximum Alert Level 1 | . . . . 1 Low Security (%) 97 | 100 100 . 100 80 Level 1 2 | . . . . 19 Level 2 . | . . . . . Level 3 . | . . . . . Level 4 . | . . . . . Level 5 . | . . . . . High Security . | . . . . . Max Security . | . . . . . Peak Influence 268 | . 135 . 57 268 Initial 100 | . . . 57 100 Average 29 | . 42 . 5 87 Influence Increases 1029 | . 305 165 80 479 Destroy 0b10 Robot/C 540 | . 180 120 60 180 Destroy 0b10 Robot/NC 20 | . 15 . . 5 Destroy Leader 86 | . 46 . . 40 Successful Hack 37 | . 17 . 20 . Disable Machine 90 | . . . . 90 Destroy Structure 66 | . 2 . . 64 Advance Influence 100 | . . . . 100 Lose Combat Pursuer 90 | . 45 45 . . Influence Decreases 771 | . 305 44 201 221 Entered New Map 64 | . . . 64 . Time Decay 566 | . 305 24 137 100 Lost Part 81 | . . 20 . 61 Purge Threat 60 | . . . . 60 Squads Dispatched 7 | . 2 . . 5 Investigation 2 | . . . . 2 Extermination 1 | . . . . 1 Reinforcement 4 | . 2 . . 2 Assault . | . . . . . Garrison . | . . . . . Intercept . | . . . . . Searches Triggered . | . . . . . Construction Impeded 1 | . . . . 1 Haulers Reinforced . | . . . . . Active Scanning Responses . | . . . . . Cargo Convoy Interrupts . | . . . . . Stealth | -11 -10 -10 -9 -7 --------- Run | Yrd Mat Sub Rec Fac Distress Signals 2 | . 2 . . . Communications Jammed . | . . . . . Distress Signals . | . . . . . Times Spotted 44 | . 21 9 2 12 Peak Tracking Total 5 | . 3 4 1 5 Tactical Retreats 4 | . 2 2 . . Traps | -11 -10 -10 -9 -7 ------- Run | Yrd Mat Sub Rec Fac Traps Triggered 2 | . 1 1 . . Indirectly . | . . . . . Trap Hack Attempts . | . . . . . Triggered . | . . . . . Disarmed . | . . . . . Reprogrammed 6 | . 6 . . . Reused . | . . . . . Traps Extracted . | . . . . . Installed . | . . . . . Triggered . | . . . . . Machines | -11 -10 -10 -9 -7 ---------- Run | Yrd Mat Sub Rec Fac Machines Disabled 9 | . . 3 . 6 Max in Single Turn 5 | . . 2 . 5 Machines Repaired . | . . . . . Machines Dismantled . | . . . . . Machines Sabotaged . | . . . . . Overloaded Fab Kills . | . . . . . Hacking | -11 -10 -10 -9 -7 --------- Run | Yrd Mat Sub Rec Fac Machines Accessed 20 | . 5 1 11 3 Terminals 12 | . 5 . 6 1 Fabricators . | . . . . . Repair Stations . | . . . . . Recycling Units 5 | . . . 5 . Scanalyzers 1 | . . . . 1 Garrison Access 1 | . . . . 1 Total Hacks 57 | . 14 9 23 11 Successful 34 | . 5 9 13 7 Failed 22 | . 8 . 10 4 Catastrophic 4 | . . . 3 1 Database Lockouts 1 | . 1 . . . Manual 19 | . 4 . 14 1 Terminals 34 | . 14 . 16 4 Fabricators . | . . . . . Repair Stations . | . . . . . Recycling Units 7 | . . . 7 . Scanalyzers 5 | . . . . 5 Garrison Access 2 | . . . . 2 Terminal Hacks 16 | . 5 9 1 1 Record 8 | . . 8 . . Robot Analysis 1 | . 1 . . . Prototype ID Bank 2 | . 1 . 1 . Branch Access Points 1 | . 1 . . . Unreport Threat 1 | . . . . 1 Reprogram Traps 1 | . 1 . . . Zone Layout 1 | . 1 . . . Proto ID Catalog 1 | . . 1 . . Fabricator Hacks . | . . . . . Repair Station Hacks . | . . . . . Recycling Unit Hacks 7 | . . . 7 . Process 1 | . . . 1 . Report Inventory 5 | . . . 5 . Retrieve Matter 1 | . . . 1 . Scanalyzer 5 | . . . . 5 Insert Component 1 | . . . . 1 Analyze 4 | . . . . 4 Garrison Access Hacks . | . . . . . Unauthorized Hacks 6 | . . . 5 1 Terminals 6 | . . . 5 1 Botnet 6 | . . . 5 1 Fabricators . | . . . . . Repair Stations . | . . . . . Recycling Units . | . . . . . Scanalyzers . | . . . . . Garrison Access . | . . . . . Data Cores Recovered . | . . . . . Used . | . . . . . Hacking Detections 16 | . 4 . 9 3 Full Trace Events 5 | . 1 . 2 2 Feedback Events . | . . . . . Feedback Blocked . | . . . . . Robot Schematics Acquired . | . . . . . Robots Built . | . . . . . Authchips . | . . . . . Time . | . . . . . Total Robot Build Rating . | . . . . . Part Schematics Acquired 1 | . . . . 1 Parts Built . | . . . . . Authchips . | . . . . . Time . | . . . . . Total Part Build Rating . | . . . . . Parts Repaired . | . . . . . Time . | . . . . . Parts Recycled . | . . . . . Recycled Matter 68 | . . . 68 . Retrieved Matter 68 | . . . 68 . Retrieved Components . | . . . . . Parts Scanalyzed 1 | . . . . 1 Part Schematics Acquired 1 | . . . . 1 Parts Damaged . | . . . . . Bothacking | -11 -10 -10 -9 -7 ------------ Run | Yrd Mat Sub Rec Fac Used RIF Installer . | . . . . . Robots Hacked . | . . . . . Non-combat . | . . . . . Combat . | . . . . . Robot Hacks Applied . | . . . . . Relay Couplers Released . | . . . . . Fabnet Peak Effective % . | . . . . . Robots Rewired . | . . . . . Allies Hacked . | . . . . . Hacks Repelled . | . . . . . Allies | -11 -10 -10 -9 -7 -------- Run | Yrd Mat Sub Rec Fac Total Allies . | . . . . . Largest Group . | . . . . . Highest-Rated Group . | . . . . . Highest-Rated Ally . | . . . . . Total Orders . | . . . . . Ally Attacks . | . . . . . Total Damage . | . . . . . Kills . | . . . . . Allies Corrupted . | . . . . . Allies Melted . | . . . . . Intel | -11 -10 -10 -9 -7 ------- Run | Yrd Mat Sub Rec Fac Active Infowar (turns) 2663 | . 275 1141 1054 193 Terrain 2663 | . 275 1141 1054 193 Robot Analysis Total 1 | . 1 . . . Derelict Logs Recovered 1 | . . 1 . . Drone Launches . | . . . . . Drone Recoveries . | . . . . . Exploration | -11 -10 -10 -9 -7 ------------- Run | Yrd Mat Sub Rec Fac Turns Passed 3442 | 30 964 1141 1054 253 Spaces Moved 1834 | 41 623 538 518 114 Core 135 | 41 94 . . . Treads . | . . . . . Legs 1699 | . 529 538 518 114 Wheels . | . . . . . Hover . | . . . . . Flight . | . . . . . Fastest Speed 50 | 50 50 190 190 120 Average Speed 164 | 50 132 190 190 150 Slowest Speed 260 | 50 190 190 190 260 Overloaded Moves . | . . . . . Propulsion Burnouts . | . . . . . Robots Hopped . | . . . . . Potential Cave-ins . | . . . . . Cave-ins Triggered . | . . . . . Exploration Rate (%) 44 | 3 91 31 93 4 Regions Visited 4 Branch Regions 2 Pre-discovered Areas 1 | . . 1 . . Known Exits Taken . | . . . . . Unknown Exits Taken 4 | 1 1 1 1 . Scrap Searched 5 | . . 5 . . Spaces Dug 12 | . . 12 . . Terrain Destroyed 129 | . . 39 . 90 Melee . | . . . . . Projectile 2 | . . . . 2 AOE 127 | . . 39 . 88 Terrain Rammed . | . . . . . Walls Destroyed . | . . . . . Machines Disabled . | . . . . . Actions | -11 -10 -10 -9 -7 --------- Run | Yrd Mat Sub Rec Fac Total 2086 | 48 722 595 571 150 Wait 104 | . 53 9 38 4 Move 1830 | 40 622 537 517 114 Hop . | . . . . . Pick Up 28 | 5 13 7 2 1 Fast Attach 6 | 3 3 . . . Attach 12 | . 4 2 . 6 Detach . | . . . . . Swap 12 | . . 7 3 2 Drop 11 | . 6 3 2 . Fire 83 | . 21 30 9 23 Melee . | . . . . . Ram . | . . . . . Kick . | . . . . . Crush . | . . . . . Escape Stasis . | . . . . . Rewire . | . . . . . Trap . | . . . . . Miscellaneous . | . . . . . Route ------- -11/Scrapyard -10/Materials (discovered 6 exits: [*Mat x3] / *Min x2 / *Sub) -10/Subcaves -9/Recycling -7/Factory History --------- Turn | Location | Event 13 | -11/Scrapyard | Discovered new exit (range 14) 31 | -11/Scrapyard | Entered Materials 55 | -10/Materials | Central database locked down 212 | -10/Materials | Discovered new exit (range 7) 241 | -10/Materials | Discovered new exit (range 7) 287 | -10/Materials | Identified exit to Mines 315 | -10/Materials | Build established: Mutant 352 | -10/Materials | Discovered new exit (range 15) 907 | -10/Materials | Discovered new exit (range 14) 988 | -10/Materials | Discovered new exit (range 5) 995 | -10/Materials | Entered Subcaves 1398 | -10/Subcaves | Learned location of Zion (-7) 1475 | -10/Subcaves | Disturbed a concealed Subdweller 1475 | -10/Subcaves | Disturbed a concealed Subdweller 1721 | -10/Subcaves | Visited 4L-MR0's lab 1746 | -10/Subcaves | Found Rainbow Chip 2106 | -10/Subcaves | Discovered new exit (range 11) 2136 | -10/Subcaves | Entered Recycling 2828 | -9/Recycling | Discovered new exit (range 16) 3190 | -9/Recycling | Entered Factory 3190 | -7/Factory | Evolved 6 slots: Propulsion x2, Utility x4 3349 | -7/Factory | Lost 3 parts (1n2w) 3425 | -7/Factory | Lost 4 parts (1p2n1u) 3443 | -7/Factory | Self-destructed Last Messages --------------- 03423_ U-05 Engineer builds a Wall. 03423_ Destroyed Particle Gun. 03423_ Destroyed Aluminum Leg. 03424_ U-05 Engineer builds a Wall. 03426_ K-01 Serf collects debris. 03427_ U-05 Engineer builds a Wall. 03428_ The unstable cave ceiling collapses. 03428_ U-05 Engineer lays Concrete. 03429_ K-01 Serf collects debris. 03431_ The unstable cave ceiling collapses. 03433_ U-05 Engineer builds a Wall. 03433_ K-01 Serf collects debris. 03434_ The unstable cave ceiling collapses. 03435_ U-05 Engineer lays Concrete. 03436_ K-01 Serf collects debris. 03437_ Aluminum Leg destroyed. 03437_ U-05 Engineer lays Concrete. 03440_ K-01 Serf collects debris. 03441_ The unstable cave ceiling collapses. 03441_ U-05 Engineer lays Concrete. Map ----- +----------------------------------------------------+ | ?????????????????????????????????????????????????? | | ?????????????????????????????????????????????????? | | ?????????????????????????????????????????????????? | | ?????????????????????????????????????????????????? | | ?????????????????????????????????????????????????? | | ?????????????????????????????????????????????????? | | ?????????????????????????????????????????????????? | | ?????????????????????????????????????????????????? | | ?????????????????????????????????????????????????? | | ????????????????????##+######????????????????????? | | ?????????????????? ###?????????????????? | | ???????????????? ] ; #?????????????????? | | ???????????????? ; #?????????????????? | | ???????????????# / ; #?????????????????? | | ???????????????" "#####?????????????? | | ??????????????#" # ?????????????? | | ??????????????"%* # """ #????????????? | | ??????????????"" u +[ """ #????????????? | | ?????????#???# " p#% """ #????????????? | | ?????????????# " # #????????????? | | ??????????????#" # #????????????? | | ?????????????##"""; # ##+######## ??????? | | ?????????#???# ?????? | | ???????????#?#[ " " " ?????? | | ?????????????# """"""" == """ ""???????? | | ?????????????# """""""@ == """ ""???????? | | ?????????????# """"""" # """ """??????? | | ?????????????# ; ?????? | | ?????????????# """"""" ^ """ """??????? | | ???#?????????# """"""" # """ ""???????? | | ?????????????#"S """"""" # """ """ ??? | | ?????????????#""" """"""" # ??? | | ??????#??????# "" """ """ ??? | | ?????????????# ! # """ ""???????? | | ?????????????############# # """ "????????? | | ??????????????????##???#?# ???????? | | ?????????????????????????## # % """ ""???????? | | ???????????????????#??????# """ ""???????? | | ??????????????????????#?#?#### # """ ""???????? | | ????????????????????????#????## ## ?????????? | | ??????????????????????????????# ## """ "????????? | | ??????????????#????#???#??????# ## """ ""???????? | | ????????????????????###########"## """ """??????? | | ????????????????????# """"" # ??????? | | ????????????????????# ""T"" # """ """ ???? | | ????????????????#???# # """ """ #??? | | ?????????????#??????# """ """ # """ """ #??? | | ????????????????????# """ """ # #??? | | ???????????????????## """ """ + """ #??? | | ????????????????????# # """ +??? | +----------------------------------------------------+ Best States ------------- Heat Dissipation 34 Energy Generation 10 Energy Capacity 250 Matter Stores 300 Matter Capacity 300 Sight Range 16 Terrain Scan Range 14 Terrain Scan Density 10 Evasion (%) 55 Offensive Hacking 11 Item Schematics ----------------- Mak. Leg | -7/Factory | Scanalyzed Robot Schematics ------------------ None Fabricated ------------ Nothing Repaired ---------- Nothing Alien Tech Used ----------------- None Achievements -------------- None Challenges ------------ None Game ------ Seed TachyonPitchforkBeamcaster Manual? 0 Play Time 00:21:13 Cumulative 181.9 hours Start 2025.09.25 @ 18:49:24 End 2025.09.25 @ 19:08:31 Sessions 1 Manual Loads 0 Difficulty Rogue Special Mode None Game No. 285 Rogue 282 Adventurer 3 Explorer 0 Win Type - Total 1 Types 1/0/0/0/0/0/0/0/0/0 Lore% 63 Gallery% 59 Achievement% 46 Wizard Run 0 Options --------- Layout 0 ASCII 0 Keyboard 0 Movement Mouse Keybinds 0 Fullscreen 2 Font 18/SmallcapsGlow Map View 76x50 Zoom Use 0% Tactical HUD 1 Map Filters NONE Filters NONE Steam 1 RUN: 615a6941-e8b8-4830-bbac-2deb423a03dd